Cogmind - Beta 13 @@@ ROGUE MODE // 2024.04.09 @ 19:33:31 Player: Olafz Result: Destroyed by Y-45 Defender with Beam Rifle Performance ------------- Evolutions (1) 500 Regions Visited (3) 600 Robots Destroyed (23) 115 Value Destroyed (532) 532 Prototype IDs (5) 100 Alien Tech Used (0) 0 Bonus (0) 0 TOTAL SCORE: 1847 Bonus ------- None Cogmind --------- Core Integrity 0/400 Matter 300/300 Energy 98/100 System Corruption 0% Temperature Cool (9) Movement Core (50) Location -9/Materials Parts ------- > --- POWER (1) -------- (None) > --- PROPULSION (2) --- (None) > --- UTILITY (4) ------ (None) > --- WEAPON (2) ------- (None) > --- INVENTORY (5) ---- Ion Engine Ion Engine Light Treads Compact Wheel Grenade Launcher Peak State ------------ > --- POWER ------------ Heavy Ion Engine > --- PROPULSION ------- Aluminum Leg Improved Aluminum Leg > --- UTILITY ---------- Heat Sink Small Storage Unit Medium Storage Unit Sensor Array > --- WEAPON ----------- Small Laser Light Assault Rifle > --- INVENTORY -------- Ion Engine Ion Engine Light Treads Compact Wheel Grenade Launcher [Rating: 12] Favorites ----------- Power Ion Engine Engine Ion Engine Propulsion Light Treads Treads Light Treads Leg Improved Aluminum Leg Utility Small Storage Unit Device Heat Sink Storage Small Storage Unit Weapon Light Assault Rifle Energy Gun Small Laser Ballistic Gun Light Assault Rifle Launcher Grenade Launcher Build | -11 -10 -10 -9 ------- Run | Yrd Mat Min Mat Slots Evolved 2 | . . . 2 Power . | . . . . Propulsion . | . . . . Utility 2 | . . . 2 Weapon . | . . . . Parts Attached 19 | . 6 1 12 Power 2 | . . . 2 Engine 2 | . . . 2 Core . | . . . . Reactor . | . . . . Propulsion 8 | . 4 . 4 Treads 6 | . 4 . 2 Leg 2 | . . . 2 Wheel . | . . . . Hover . | . . . . Flight . | . . . . Utility 3 | . 1 . 2 Device 2 | . . . 2 Storage 1 | . 1 . . Processor . | . . . . Hackware . | . . . . Protection . | . . . . Artifact . | . . . . Weapon 6 | . 1 1 4 Energy Gun 1 | . . . 1 Energy Cannon . | . . . . Ballistic Gun 4 | . 1 . 3 Ballistic Cannon . | . . . . Launcher 1 | . . 1 . Special Weapon . | . . . . Impact Weapon . | . . . . Slashing Weapon . | . . . . Piercing Weapon . | . . . . Special Melee Weapon . | . . . . Unidentified Prototypes 1 | . . . 1 Parts Lost 11 | . . 1 10 Power 1 | . . 1 . Propulsion 4 | . . . 4 Utility 2 | . . . 2 Weapon 4 | . . . 4 Highest Loss Streak 5 | . . 1 5 To Critical Strikes . | . . . . Average Slot Usage (%) 77 | . 91 87 65 Engine 6 | . 14 2 5 Treads 17 | . 24 28 8 Leg 4 | . 1 . 8 Device 2 | . . . 4 Storage 23 | . 22 28 21 Energy Gun 1 | . . . 2 Ballistic Gun 17 | . 28 15 13 Launcher 3 | . . 12 1 Naked Turns 2 | . . . 2 Heaviest Build 27 | 12 23 23 27 Greatest Support 40 | 20 40 40 40 Greatest Overweight (x) 5 | . . . 5 Average Overweight (x) . | . . . . Largest Inventory Capacity 10 | . 10 10 10 Average Capacity 9 | . 9 10 9 Most Carried 8 | . 8 6 7 Average Carried 5 | . 5 6 4 Final Capacity 10 | 8 10 10 5 Final Carried 6 | 6 6 6 5 Class Distribution -------------------- 77% | Mutant 22% | Scavenger-Mutant Dominant Class ---------------- Mutant | -10/Materials Mutant | -10/Mines Mutant | -9/Materials Resources | -11 -10 -10 -9 ----------- Run | Yrd Mat Min Mat Matter Collected 597 | 180 30 154 233 Remotely . | . . . . Salvage Created 811 | . 137 94 580 Parts 46 | . 14 7 25 Haulers Intercepted 1 | . 1 . . Recyclers Shooed . | . . . . Parts Field Recycled . | . . . . Retrieved Matter . | . . . . Parts Self-Destructed . | . . . . Prevented . | . . . . Kills | -11 -10 -10 -9 ------- Run | Yrd Mat Min Mat Combat Hostiles Destroyed 17 | . 3 2 12 Guns 16 | . 3 1 12 AOE 1 | . . 1 . Classes Destroyed 8 | . 3 2 3 Worker 5 | . 2 2 1 Hauler 1 | . 1 . . Watcher 1 | . . . 1 Swarmer 3 | . 3 . . Grunt 10 | . . 1 9 Duelist 2 | . . . 2 Sentry 1 | . . . 1 Assembled 1 | . . 1 . Best Kill Streak 6 | . 6 2 4 Combat Bots Only 4 | . 3 1 4 Max Kills in Single Turn 2 | . 1 2 1 Gunslinging . | . . . . Exploded 1 | . . 1 . Melee . | . . . . Uniques/NPCs Destroyed . | . . . . Combat | -11 -10 -10 -9 -------- Run | Yrd Mat Min Mat Hostile Shots Fired 181 | . 18 5 158 Missed 51 | . 3 1 47 Damage Taken 1793 | . 122 170 1501 Core 454 | . 31 16 407 Absorbed by Shields . | . . . . Core Remaining (%) 90 | 100 . 81 . Volleys Fired 111 | . 14 14 83 Largest 2 | . 2 2 2 Hottest 60 | . 40 50 60 Shots Fired 176 | . 28 18 130 Gun 173 | . 28 15 130 Cannon . | . . . . Launcher 3 | . . 3 . Special . | . . . . Kinetic 162 | . 28 15 119 Thermal 11 | . . . 11 Explosive 3 | . . 3 . Electromagnetic . | . . . . Robot Hit Streak 10 | . 10 6 10 Robot Miss Streak 6 | . 2 1 6 Penetration Max . | . . . . Secondary Targets 5 | . . . 5 Max Gunslinging Chain 1 | . . . 1 Shots Hit Robots 107 | . 16 10 81 Core Hits 49 | . 9 8 32 Critical Kills . | . . . . Critical Parts Destroyed 1 | . . . 1 Critical Strikes 1 | . . . 1 Destroy 1 | . . . 1 Melee Attacks . | . . . . Impact . | . . . . Slashing . | . . . . Piercing . | . . . . Sneak Attacks . | . . . . Combat Hostiles . | . . . . Follow-up Attacks . | . . . . Damage Inflicted 1063 | . 174 147 742 Guns 1004 | . 174 88 742 Cannons . | . . . . Explosions 59 | . . 59 . Melee . | . . . . Ramming . | . . . . Kinetic 939 | . 174 88 677 Thermal 65 | . . . 65 Explosive 59 | . . 59 . Electromagnetic . | . . . . Impact . | . . . . Slashing . | . . . . Piercing . | . . . . Highest Corruption 1 | . . 1 . Average Corruption 1 | . . 1 . Corruption Purged . | . . . . Corruption Blocked . | . . . . Effects 1 | . . 1 . Weapon Failures 1 | . . 1 . Overload Shots . | . . . . Overflow Damage . | . . . . Projectiles . | . . . . Explosions . | . . . . Melee . | . . . . Knockbacks . | . . . . Impact . | . . . . Kinetic . | . . . . Secondary . | . . . . Self-Inflicted Damage 61 | . . 61 . Shots 2 | . . 2 . Rammed . | . . . . Targets Rammed . | . . . . Kicked . | . . . . Crushed . | . . . . Highest Temperature 32 | . . 10 32 Average Temperature 9 | . . 7 9 Received Heat Transfer 570 | . . . 570 Siege Activations . | . . . . Robots Corrupted . | . . . . Combat Hostiles . | . . . . Parts Fried . | . . . . Impact Corruptions . | . . . . Robots Melted . | . . . . Combat Hostiles . | . . . . Parts Melted . | . . . . Heat Transferred 150 | . . . 150 Parts Sabotaged . | . . . . Parts Stolen . | . . . . Parts Stripped . | . . . . Power Chain Reactions . | . . . . Alert | -11 -10 -10 -9 ------- Run | Yrd Mat Min Mat Peak Influence 209 | . 107 77 209 Initial 41 | . . 41 29 Average 78 | . 58 54 99 Maximum Alert Level 1 | . . . 1 Low Security (%) 96 | . 100 100 93 Level 1 3 | . . . 6 Level 2 . | . . . . Level 3 . | . . . . Level 4 . | . . . . Level 5 . | . . . . High Security . | . . . . Max Security . | . . . . Squads Dispatched 3 | . . . 3 Investigation 2 | . . . 2 Extermination . | . . . . Reinforcement 1 | . . . 1 Assault . | . . . . Garrison . | . . . . Intercept . | . . . . Searches Triggered . | . . . . Construction Impeded . | . . . . Haulers Reinforced . | . . . . Active Scanning Responses . | . . . . Cargo Convoy Interrupts . | . . . . Stealth | -11 -10 -10 -9 --------- Run | Yrd Mat Min Mat Distress Signals 4 | . 2 . 2 Communications Jammed . | . . . . Distress Signals . | . . . . Times Spotted 29 | . 4 2 23 Peak Tracking Total 7 | . 3 2 7 Tactical Retreats 1 | . . 1 . Traps | -11 -10 -10 -9 ------- Run | Yrd Mat Min Mat Traps Triggered 1 | . 1 . . Indirectly . | . . . . Trap Hack Attempts . | . . . . Triggered . | . . . . Disarmed . | . . . . Reprogrammed . | . . . . Reused . | . . . . Traps Extracted . | . . . . Installed . | . . . . Triggered . | . . . . Machines | -11 -10 -10 -9 ---------- Run | Yrd Mat Min Mat Machines Disabled . | . . . . Max in Single Turn . | . . . . Machines Repaired . | . . . . Machines Dismantled . | . . . . Machines Sabotaged . | . . . . Overloaded Fab Kills . | . . . . Hacking | -11 -10 -10 -9 --------- Run | Yrd Mat Min Mat Machines Accessed 4 | . 1 . 3 Terminals 4 | . 1 . 3 Fabricators . | . . . . Repair Stations . | . . . . Recycling Units . | . . . . Scanalyzers . | . . . . Garrison Access . | . . . . Total Hacks 15 | . 4 . 11 Successful 7 | . 2 . 5 Failed 8 | . 2 . 6 Catastrophic . | . . . . Database Lockouts . | . . . . Manual 11 | . 4 . 7 Terminals 15 | . 4 . 11 Fabricators . | . . . . Repair Stations . | . . . . Recycling Units . | . . . . Scanalyzers . | . . . . Garrison Access . | . . . . Terminal Hacks 4 | . 1 . 3 Prototype ID Bank 2 | . . . 2 Alert Level 1 | . 1 . . Unreport Threat 1 | . . . 1 Fabricator Hacks . | . . . . Repair Station Hacks . | . . . . Recycling Unit Hacks . | . . . . Scanalyzer . | . . . . Garrison Access Hacks . | . . . . Unauthorized Hacks 3 | . 1 . 2 Terminals 3 | . 1 . 2 Botnet 3 | . 1 . 2 Fabricators . | . . . . Repair Stations . | . . . . Recycling Units . | . . . . Scanalyzers . | . . . . Garrison Access . | . . . . Data Cores Recovered . | . . . . Used . | . . . . Hacking Detections 4 | . 1 . 3 Full Trace Events 4 | . 1 . 3 Feedback Events . | . . . . Feedback Blocked . | . . . . Robot Schematics Acquired . | . . . . Robots Built . | . . . . Authchips . | . . . . Time . | . . . . Total Robot Build Rating . | . . . . Part Schematics Acquired . | . . . . Parts Built . | . . . . Authchips . | . . . . Time . | . . . . Total Part Build Rating . | . . . . Parts Repaired . | . . . . Time . | . . . . Parts Recycled . | . . . . Recycled Matter . | . . . . Retrieved Matter . | . . . . Retrieved Components . | . . . . Parts Scanalyzed . | . . . . Part Schematics Acquired . | . . . . Parts Damaged . | . . . . Bothacking | -11 -10 -10 -9 ------------ Run | Yrd Mat Min Mat Used RIF Installer . | . . . . Robots Hacked . | . . . . Non-combat . | . . . . Combat . | . . . . Robot Hacks Applied . | . . . . Relay Couplers Released . | . . . . Fabnet Peak Effective % . | . . . . Robots Rewired . | . . . . Allies Hacked . | . . . . Hacks Repelled . | . . . . Allies | -11 -10 -10 -9 -------- Run | Yrd Mat Min Mat Total Allies . | . . . . Largest Group . | . . . . Highest-Rated Group . | . . . . Highest-Rated Ally . | . . . . Total Orders . | . . . . Ally Attacks . | . . . . Total Damage . | . . . . Kills . | . . . . Allies Corrupted . | . . . . Allies Melted . | . . . . Intel | -11 -10 -10 -9 ------- Run | Yrd Mat Min Mat Robot Analysis Total . | . . . . Derelict Logs Recovered . | . . . . Drone Launches . | . . . . Drone Recoveries . | . . . . Exploration | -11 -10 -10 -9 ------------- Run | Yrd Mat Min Mat Turns Passed 879 | . 204 226 449 Spaces Moved 336 | 1 99 120 116 Core 6 | . . . 6 Treads 284 | . 87 120 77 Legs 46 | 1 12 . 33 Wheels . | . . . . Hover . | . . . . Flight . | . . . . Fastest Speed 50 | 120 120 160 50 Average Speed 174 | 120 155 160 205 Slowest Speed 300 | 120 160 160 300 Overloaded Moves . | . . . . Propulsion Burnouts . | . . . . Robots Hopped . | . . . . Cave-ins Triggered . | . . . . Exploration Rate (%) 17 | 2 26 26 16 Regions Visited 3 Branch Regions 1 Pre-discovered Areas . | . . . . Known Exits Taken . | . . . . Unknown Exits Taken 3 | 1 1 1 . Scrap Searched . | . . . . Spaces Dug . | . . . . Terrain Destroyed 16 | . . 16 . Melee . | . . . . Projectile . | . . . . AOE 16 | . . 16 . Terrain Rammed . | . . . . Walls Destroyed . | . . . . Machines Disabled . | . . . . Actions | -11 -10 -10 -9 --------- Run | Yrd Mat Min Mat Total 476 | . 124 137 215 Wait 4 | . . 3 1 Move 333 | . 98 119 116 Hop . | . . . . Pick Up 2 | . 2 . . Fast Attach 10 | . 2 . 8 Attach 6 | . 2 . 4 Detach 4 | . 1 . 3 Swap 3 | . 2 1 . Drop 3 | . 3 . . Fire 111 | . 14 14 83 Melee . | . . . . Ram . | . . . . Kick . | . . . . Crush . | . . . . Escape Stasis . | . . . . Rewire . | . . . . Trap . | . . . . Miscellaneous . | . . . . Route ------- -11/Scrapyard -10/Materials -10/Mines -9/Materials (discovered 1 exit: [*Mat]) History --------- Turn | Location | Event 1 | -11/Scrapyard | Discovered new exit (range 0) 1 | -11/Scrapyard | Entered Materials 195 | -10/Materials | Discovered new exit (range 7) 205 | -10/Materials | Entered Mines 237 | -10/Mines | Excavation squad dispatched 237 | -10/Mines | A large section of the Mines collapsed 316 | -10/Mines | Build established: Mutant 411 | -10/Mines | Discovered new exit (range 8) 416 | -10/Mines | Met a Derelict testing a Signal Generator 431 | -10/Mines | Entered Materials 431 | -9/Materials | Evolved 2 slots: Utility x2 573 | -9/Materials | Lost 3 parts (2n1w) 604 | -9/Materials | Core integrity fell below 50% 869 | -9/Materials | Core integrity fell below 20% 878 | -9/Materials | Released all parts (4) 879 | -9/Materials | Discovered new exit (range 11) 880 | -9/Materials | Destroyed by Y-45 Defender with Beam Rifle Last Messages --------------- Acquired Heat Sink. Acquired 18 matter. W-16 Scout destroyed. Acquired 2 matter. Acquired Sensor Array. K-01 Serf collects debris. K-01 Serf destroyed. Imp. Aluminum Leg destroyed. G-34 Mercenary destroyed. Switching to secondary target: G-34 Mercenary. U-05 Engineer destroyed. Lgt. Assault Rifle destroyed. Heat Sink destroyed. Sensor Array destroyed. Aluminum Leg destroyed. Released Hvy. Ion Engine. Released Sml. Storage Unit. Released Med. Storage Unit. Released Sml. Laser. EXIT=FOUND Map ----- +----------------------------------------------------+ | ?????????????????????????????????????????????????? | | ?????????????????????????????????????????????????? | | ?????????????????????????????????????????????????? | | ?????????????????????????????????????????????????? | | ?????????????????????????????????????????????????? | | ?????????????????????????????????????????????????? | | ?????????????????????????????????????????????????? | | ?????????????????????????????????????????????????? | | ?????????????????????????????????????????????????? | | ?????????????????????????????????????????????????? | | ?????????????????????????????????????????????????? | | ?????????????????????????????????????????????????? | | ?????????????????????????????????????????????????? | | ?????????????????????????????????????????????????? | | ??????????????? ? ?????????????????????????????? | | ??????????????? ????????????????????????????? | | ???????????????"" ????????????????????????????? | | ???????????? """ ????????????????????????????? | | ???????????? """ ????????????????????????????? | | ??????????? ????????????????????????????? | | ??????????? ########+######?????????????? | | ??????????? #?????????????? | | ???????????? < #?????????????? | | ???????????????# ??????????????? | | ???????????????#k #?????????????????? | | ???????????????# ^@ #?????????????????? | | ???????????????# """" #?????????????????? | | ???????????????#/= """" +?????????????????? | | ???????????????#=!g """" #?????????????????? | | ???????????????# g! [ #?????????????????? | | ???????????????# *% Y!*! #?????????????????? | | ???????????????# = Y#T#########?????????????????? | | ???????????????## Y!###?????????????????????????? | | ????????????????# %#???????????????????????????? | | ????????????????# ![#???????????????????????????? | | ????????????????# *%!#???????????????????????????? | | ????????????????# | ##########??????????????????? | | ????????????????# ???????????? | | ????????????????# #####+##+##??????????????????? | | ???????????? ?# #????????????????????????????? | | ??????????? ?# #????????????????????????????? | | ???????????# ## #????????????????????????????? | | ???????????# ## #????????????????????????????? | | ???????????# ## #????????????????????????????? | | ???????????# ## #????????????????????????????? | | ???????????# ## #????????????????????????????? | | ??########?# ## #????????????????????????????? | | ??# #?# ## #????????????????????????????? | | ??# #?# ## #????????????????????????????? | | ??# "" #?# ## ##########???????????????????? | +----------------------------------------------------+ Best States ------------- Heat Dissipation 38 Energy Generation 14 Energy Capacity 280 Matter Stores 300 Matter Capacity 300 Sight Range 16 Robot Scan Range 14 Terrain Scan Density 10 Evasion (%) 55 Recoil Reduction 2 Item Schematics ----------------- None Robot Schematics ------------------ None Fabricated ------------ Nothing Alien Tech Used ----------------- None Achievements -------------- None Challenges ------------ None Game ------ Seed GuidedModifiedStick Manual? 0 Play Time 00:11:37 Cumulative 38.4 hours Start 2024.04.09 @ 19:24:29 End 2024.04.09 @ 19:33:31 Sessions 1 Manual Loads 0 Difficulty Rogue Special Mode None Game No. 103 Rogue 101 Adventurer 2 Explorer 0 Win Type - Total 0 Types 0/0/0/0/0/0/0/0/0 Lore% 28 Gallery% 35 Achievement% 26 Wizard Run 0 Options --------- Layout 2 ASCII 0 Keyboard 1 Movement Numpad Keybinds 1 Fullscreen 2 Font 24/Smallcaps Map View 50x44 Zoom Use 0% Tactical HUD 1 Map Filters NONE Filters NONE Steam 1 RUN: ba1828fd-1fab-48b4-9ea1-6c0d951d91fe